bitfinex/quotes_BTCUSD_20250428
["timestamp","ask_amount","ask_price","bid_price","bid_amount"]
[1745825962240,0.02964126,94759.0,94754.0,0.01055364]
[1745825962450,0.02964126,94758.0,94753.0,0.01055375]
[1745825962654,0.04939515,94757.0,94753.0,0.01055375]
[1745825962858,0.04939515,94757.0,94754.0,0.01055364]
[1745825962859,0.01975389,94757.0,94754.0,0.01055364]
[1745825963280,0.01975389,94756.0,94754.0,0.01055364]
[1745825963664,0.01975389,94756.0,94754.0,0.01255364]
[1745825963866,0.01975389,94755.0,94754.0,0.01055364]
[1745825964061,0.01975389,94755.0,94754.0,0.01255364]
[1745825964475,0.01975389,94755.0,94754.0,0.01355364]
[1745825965097,0.01975389,94755.0,94754.0,0.02139307]
[1745825965685,0.01975389,94755.0,94754.0,0.02439307]
[1745825965905,0.01975389,94755.0,94754.0,0.01839307]
[1745825966368,0.02075389,94755.0,94754.0,0.02439307]
[1745825966885,0.03135329,94755.0,94754.0,0.01383943]
[1745825967289,0.02075389,94755.0,94754.0,0.01383943]
[1745825968905,0.02075389,94755.0,94754.0,0.006]
[1745825969149,0.06081864,94755.0,94754.0,0.006]
[1745825969902,0.05981864,94755.0,94754.0,0.003]
[1745825970131,0.05981864,94755.0,94751.0,0.00245802]
[1745825970326,0.04939912,94754.0,94751.0,0.00245802]
[1745825970540,0.02964523,94753.0,94751.0,0.00245802]
[1745825970818,0.02964523,94752.0,94751.0,0.00245802]
[1745825970979,0.04939912,94752.0,94751.0,0.00245802]
[1745825971196,0.04939912,94752.0,94751.0,0.00345802]
[1745825972510,0.04939912,94752.0,94751.0,0.00245802]
[1745825972709,0.04939912,94752.0,94751.0,0.00345802]
[1745825972915,0.04939912,94752.0,94751.0,0.00545802]
[1745825974999,0.04939912,94752.0,94751.0,0.00445802]
[1745825975266,0.04939912,94752.0,94751.0,0.00545802]
[1745825975800,0.04939912,94752.0,94751.0,0.00345802]
[1745825975975,0.04939912,94752.0,94751.0,0.00445802]
[1745825981915,0.05540437,94752.0,94751.0,0.00445802]
[1745825983436,0.05540437,94752.0,94751.0,0.00345802]
[1745825983437,0.04939912,94752.0,94751.0,0.00345802]
[1745825983764,0.05239912,94752.0,94751.0,0.00445802]
[1745825984175,0.05239912,94752.0,94751.0,0.00345802]
[1745825984350,0.05539912,94752.0,94751.0,0.00345802]
[1745825985550,0.44099912,94752.0,94751.0,0.00345802]
[1745825986594,0.44099912,94752.0,94738.0,0.0008492]
[1745825986794,0.38939912,94751.0,94738.0,0.0008492]
[1745825987101,0.02964523,94750.0,94738.0,0.0008492]
[1745825987307,0.02964523,94749.0,94738.0,0.0008492]
[1745825987510,0.01975389,94749.0,94738.0,0.0008492]
[1745825987715,0.02964523,94748.0,94738.0,0.0008492]
[1745825987891,0.04939912,94748.0,94738.0,0.0008492]
[1745825988770,0.04939912,94748.0,94747.0,0.0018488]
[1745825989135,0.04939912,94748.0,94747.0,0.0008488]
[1745825989485,0.05239912,94748.0,94747.0,0.0018488]
[1745825989877,0.65460536,94748.0,94747.0,0.0018488]
[1745825990067,0.56353011,94748.0,94747.0,0.0018488]
[1745825990630,0.56553011,94748.0,94747.0,0.0018488]
[1745825990899,0.56353011,94748.0,94747.0,0.0018488]
[1745825991190,0.56653011,94748.0,94747.0,0.0018488]
[1745825991456,0.97413011,94748.0,94747.0,0.0008488]
[1745825991681,1.44458646,94748.0,94747.0,0.0018488]
[1745825991883,1.44458646,94748.0,94747.0,0.001]
[1745825992087,0.34,94737.0,94736.0,0.0008492]
[1745825992294,0.88713537,94737.0,94736.0,0.00089499]
[1745825992709,1.0099528,94737.0,94736.0,0.00089499]
[1745825993365,1.0109528,94737.0,94736.0,0.00189499]
[1745825993782,0.90788926,94737.0,94736.0,0.00189499]
[1745825993991,0.90788926,94737.0,94736.0,0.00180194]
[1745825994583,0.90888926,94737.0,94736.0,0.00180194]
[1745825997916,0.46199912,94737.0,94736.0,0.00180194]
[1745825998334,0.80199912,94737.0,94736.0,0.00180194]
[1745825998536,0.77235389,94737.0,94736.0,0.00180194]
[1745825999331,0.80191856,94737.0,94736.0,0.00180194]
[1745825999562,0.88211042,94737.0,94736.0,0.00180194]
[1745825999718,0.80191856,94737.0,94736.0,0.00180194]
[1745826000118,0.43235389,94737.0,94736.0,0.00180194]
[1745826000322,0.02175389,94737.0,94736.0,0.00180194]
[1745826000528,0.02175389,94737.0,94736.0,0.006092]
[1745826000978,0.002,94737.0,94736.0,0.006092]
[1745826001209,0.01975389,94747.0,94736.0,0.005092]
[1745826001527,0.001,94748.0,94736.0,0.21820498]
[1745826001528,0.001,94737.0,94736.0,0.21820498]
[1745826001696,0.001,94737.0,94736.0,0.22617798]
[1745826002121,0.01975389,94745.0,94744.0,0.21109516]
[1745826002597,0.02075389,94747.0,94746.0,0.2110907]
[1745826002817,0.02075389,94747.0,94746.0,0.32009151]
[1745826003030,0.001,94748.0,94746.0,0.32225071]
[1745826003231,0.001,94748.0,94747.0,0.10689014]
[1745826003579,0.001,94748.0,94747.0,0.292338]
[1745826003999,0.001,94748.0,94747.0,0.32834023]
[1745826005052,0.34,94787.0,94747.0,0.32834023]
[1745826005053,0.01875389,94775.0,94772.0,0.01055163]
[1745826005268,0.01875389,94775.0,94773.0,0.09409539]
[1745826005686,0.01875389,94775.0,94773.0,0.30512439]
[1745826006091,0.34,94795.0,94776.0,0.21102259]
[1745826006309,0.02953861,94789.0,94777.0,0.00420733]
[1745826006720,0.04037152,94789.0,94777.0,0.00420733]
[1745826006928,0.01083291,94789.0,94778.0,0.21101943]
[1745826007135,0.00088204,94790.0,94778.0,0.21879915]
[1745826007348,0.00088204,94790.0,94779.0,0.00420329]
[1745826007565,0.002,94789.0,94779.0,0.00599922]
[1745826007778,0.00088204,94790.0,94779.0,0.00599922]
[1745826008201,0.00388204,94790.0,94779.0,0.00599922]
[1745826008403,0.01425095,94790.0,94779.0,0.00599922]
[1745826008606,0.01125095,94790.0,94779.0,0.00599922]
[1745826008822,0.01125095,94790.0,94779.0,0.21701585]
[1745826009183,0.01125095,94790.0,94779.0,0.00699922]
[1745826009184,0.002,94789.0,94779.0,0.00699922]
[1745826009387,0.01425095,94790.0,94779.0,0.00699922]
[1745826009585,0.01425095,94790.0,94779.0,0.00600524]
[1745826009788,0.01625095,94790.0,94781.0,0.21101275]
[1745826009995,0.01625095,94790.0,94782.0,0.21100904]
[1745826010203,0.01625095,94790.0,94785.0,0.21100377]
[1745826010409,0.01625095,94790.0,94782.0,0.21100904]
[1745826010961,0.01125095,94790.0,94782.0,0.21100904]
[1745826011164,0.003,94789.0,94782.0,0.21100904]
[1745826011581,0.01125095,94790.0,94782.0,0.21100904]
[1745826012002,0.01425095,94790.0,94782.0,0.001]
[1745826012417,0.01325095,94790.0,94779.0,0.21101596]
[1745826012638,0.01325095,94790.0,94781.0,0.21101197]
[1745826012848,0.003,94789.0,94782.0,0.001]
[1745826014156,0.01125095,94790.0,94778.0,0.00777972]
[1745826014599,0.35125095,94790.0,94778.0,0.21101943]
[1745826014842,0.35425095,94790.0,94779.0,0.001]
[1745826015501,0.01125095,94790.0,94778.0,0.21101943]
[1745826015729,0.002,94789.0,94779.0,0.21101502]
[1745826015959,0.01425095,94790.0,94779.0,0.21101502]
[1745826016201,0.01625095,94790.0,94778.0,0.001]
[1745826016412,0.01425095,94790.0,94778.0,0.00872413]
[1745826016829,0.01625095,94790.0,94778.0,0.001]
[1745826017026,0.01325095,94790.0,94777.0,0.08984]
[1745826017528,0.01625095,94790.0,94779.0,0.001]
[1745826017721,0.01625095,94790.0,94781.0,0.21101267]
[1745826017954,0.01325095,94790.0,94781.0,0.21101267]
[1745826018347,0.01625095,94790.0,94781.0,0.21101267]
[1745826018665,0.01625095,94790.0,94781.0,0.21101236]
[1745826018818,0.01325095,94790.0,94781.0,0.21101236]
[1745826018996,0.01425095,94790.0,94781.0,0.21201236]
[1745826019231,0.01625095,94790.0,94781.0,0.21201236]
[1745826019655,0.01425095,94790.0,94781.0,0.21201236]
[1745826019975,0.01625095,94790.0,94781.0,0.21201236]
[1745826020561,0.01625095,94790.0,94781.0,0.001]
[1745826021649,0.01625095,94790.0,94781.0,0.21201089]
[1745826022290,0.01625095,94790.0,94781.0,0.001]
[1745826022709,0.01625095,94790.0,94784.0,0.21100468]
[1745826022914,0.01625095,94790.0,94784.0,0.0105503]
[1745826023138,0.01625095,94790.0,94788.0,0.21099568]
[1745826023332,0.01625095,94790.0,94785.0,0.21100385]
[1745826023742,0.01125095,94790.0,94783.0,0.2110083]
[1745826023943,0.01625095,94790.0,94784.0,0.001]
[1745826024566,0.01325095,94790.0,94783.0,0.3008483]
[1745826024694,0.01625095,94790.0,94785.0,0.001]
[1745826025098,0.01425095,94790.0,94785.0,0.001]
[1745826025345,0.01125095,94790.0,94783.0,0.3008483]
[1745826025540,0.01325095,94790.0,94783.0,0.3008483]
[1745826026450,0.01125095,94790.0,94783.0,0.3008483]
[1745826026655,0.01625095,94790.0,94784.0,0.001]
[1745826026996,0.01961732,94789.0,94784.0,0.21200399]
[1745826027406,0.01961732,94789.0,94784.0,0.21100399]
[1745826027627,0.01961732,94788.0,94784.0,0.21100399]
[1745826028045,0.01961732,94787.0,94784.0,0.21100399]
[1745826028422,0.01961732,94786.0,94784.0,0.21100399]
[1745826028621,0.01961732,94786.0,94784.0,0.21200399]
[1745826028893,0.01961732,94785.0,94784.0,0.21200399]
[1745826029480,0.01961732,94785.0,94784.0,0.001]
[1745826029898,0.01961732,94785.0,94783.0,0.3008483]
[1745826030101,0.02061732,94785.0,94784.0,0.001]
[1745826030512,0.02061732,94785.0,94783.0,0.3008483]
[1745826030916,0.01961732,94784.0,94783.0,0.3008483]
[1745826031588,0.01961732,94784.0,94783.0,0.3018483]
[1745826033344,0.04918793,94784.0,94783.0,0.3008483]
[1745826033551,0.04918793,94784.0,94783.0,0.08984]
[1745826033753,0.05018793,94784.0,94783.0,0.09084]
[1745826035256,0.05018793,94784.0,94783.0,0.3018483]
[1745826042044,0.05018793,94784.0,94783.0,0.45553844]
[1745826042986,0.04918793,94784.0,94783.0,0.45453844]
[1745826043413,0.03057061,94784.0,94783.0,0.45753844]
[1745826044270,0.03057061,94784.0,94783.0,0.46053844]
[1745826051389,0.001,94784.0,94783.0,0.46053844]
[1745826052045,0.001,94784.0,94783.0,0.47085898]
[1745826053840,0.001,94784.0,94783.0,0.46149844]
[1745826054391,0.001,94784.0,94783.0,0.45849844]
[1745826054772,0.001,94784.0,94783.0,0.46349844]
[1745826054974,0.001,94784.0,94783.0,0.45849844]
[1745826055227,0.00088204,94790.0,94789.0,0.21099494]
[1745826055421,0.00088204,94790.0,94789.0,0.31999463]
[1745826055620,0.00088204,94790.0,94789.0,0.31788508]
[1745826057632,0.00088204,94790.0,94789.0,0.31888508]
[1745826057836,0.00088204,94790.0,94789.0,0.31988508]
[1745826058044,0.00088204,94790.0,94789.0,0.10889014]
[1745826058277,0.00088204,94790.0,94789.0,0.19869014]
[1745826058915,0.00088204,94790.0,94789.0,0.00630232]
[1745826059136,0.00088204,94790.0,94789.0,0.00693549]
[1745826059320,0.00088204,94790.0,94789.0,0.00893549]
[1745826059968,0.00088204,94790.0,94789.0,0.00693549]
[1745826060170,0.00088204,94790.0,94789.0,0.00793549]
[1745826060376,0.00088204,94790.0,94789.0,0.00693549]
[1745826060555,0.00088204,94790.0,94789.0,0.00793549]
[1745826061013,0.00088204,94790.0,94789.0,0.00693549]
[1745826061222,0.00088204,94790.0,94789.0,0.00793549]
[1745826061421,0.02062923,94790.0,94789.0,0.00793549]
[1745826061625,0.05024973,94790.0,94789.0,0.00793549]
[1745826062040,0.09934973,94790.0,94789.0,0.00793549]
[1745826062252,0.09934973,94790.0,94789.0,0.001]
[1745826062454,0.09934973,94790.0,94789.0,0.00706925]
[1745826062667,0.42060254,94790.0,94789.0,0.00706925]
[1745826062879,0.42060254,94790.0,94789.0,0.001]
[1745826063068,0.41960254,94790.0,94789.0,0.001]
[1745826063270,0.44463676,94790.0,94789.0,0.001]
[1745826063508,0.34,94789.0,94783.0,0.001]
[1745826063737,0.0296205,94788.0,94783.0,0.001]
[1745826063929,0.0296205,94787.0,94784.0,0.00608438]
[1745826064140,0.0296205,94786.0,94784.0,0.00608438]
[1745826064350,0.0296205,94785.0,94784.0,0.00608438]
[1745826064561,0.0296205,94789.0,94784.0,0.00608438]
[1745826064807,0.0296205,94788.0,94784.0,0.00608438]
[1745826064989,0.0296205,94787.0,94784.0,0.00608438]
[1745826065194,0.0296205,94786.0,94784.0,0.00608438]
[1745826065403,0.0296205,94785.0,94784.0,0.00608438]
[1745826066086,0.0795205,94785.0,94784.0,0.00708438]
[1745826066263,0.46797075,94785.0,94784.0,0.00708438]
[1745826066462,0.52741064,94785.0,94784.0,0.00608438]
[1745826066885,0.34,94784.0,94779.0,0.20065402]
[1745826067098,0.0296205,94783.0,94779.0,0.20065402]
[1745826067455,0.0296205,94782.0,94779.0,0.20065402]
[1745826067656,0.0296205,94781.0,94779.0,0.20065402]
[1745826067866,0.0296205,94780.0,94779.0,0.20065402]
[1745826069465,0.4953517,94780.0,94779.0,0.20065402]
[1745826069665,1.0020517,94780.0,94779.0,0.20165402]
[1745826069993,1.15969255,94780.0,94779.0,0.20065402]
[1745826070201,1.18765507,94780.0,94779.0,0.20065402]
[1745826070618,1.18765507,94780.0,94779.0,0.19553546]
[1745826071453,1.18665507,94780.0,94779.0,0.19453546]
[1745826071662,1.18865507,94780.0,94779.0,0.19453546]
[1745826071872,1.19265507,94780.0,94779.0,0.19553546]
[1745826072330,1.03071401,94780.0,94779.0,0.19553546]
[1745826074221,1.01617316,94780.0,94779.0,0.19553546]
[1745826074431,0.90928302,94780.0,94779.0,0.19553546]
[1745826074644,0.81518302,94780.0,94779.0,0.19553546]
[1745826075057,0.44556252,94780.0,94779.0,0.19553546]
[1745826075478,0.01523078,94780.0,94779.0,0.17883546]
[1745826075686,0.01523078,94780.0,94779.0,0.22653546]
[1745826075889,0.007,94780.0,94779.0,0.22653546]
[1745826076127,0.003,94780.0,94779.0,0.22553546]
[1745826076344,0.003,94780.0,94779.0,0.22653546]
[1745826076760,0.004,94780.0,94779.0,0.22653546]
[1745826076975,0.003,94780.0,94779.0,0.22653546]
[1745826077230,0.003,94780.0,94779.0,0.22953546]
[1745826077802,0.003,94780.0,94779.0,0.22853546]
[1745826078008,0.001,94780.0,94779.0,0.22853546]
[1745826078212,0.002,94780.0,94779.0,0.23153546]
[1745826078996,0.002,94780.0,94779.0,0.23481646]
[1745826083320,0.002,94780.0,94779.0,0.18711646]
[1745826086489,0.002,94780.0,94779.0,0.29611658]
[1745826086699,0.002,94780.0,94779.0,0.2940066]
[1745826091188,0.40848204,94798.0,94791.0,0.21098938]
[1745826091391,8.203e-05,94798.0,94791.0,0.21098938]
[1745826092392,0.00208203,94798.0,94791.0,0.21198938]
[1745826092605,0.00208203,94798.0,94791.0,0.001]
[1745826092737,0.00308203,94798.0,94791.0,0.001]
[1745826094115,0.02957657,94797.0,94791.0,0.001]
[1745826094700,0.04929024,94797.0,94791.0,0.001]
[1745826094910,0.01971367,94797.0,94791.0,0.001]
[1745826095108,0.01971367,94797.0,94779.0,0.18211646]
[1745826095109,0.0456,94797.0,94779.0,0.18211646]
[1745826095320,0.02957897,94796.0,94781.0,0.21101195]
[1745826095979,0.01971367,94795.0,94779.0,0.19266732]
[1745826096208,0.02957897,94794.0,94779.0,0.18211646]
[1745826096413,0.02957897,94794.0,94780.0,0.21101498]
[1745826096603,0.03057897,94796.0,94782.0,0.21101001]
[1745826096922,0.02957897,94795.0,94782.0,0.21101001]
[1745826097098,0.02957897,94796.0,94782.0,0.21101001]
[1745826097418,0.02957897,94795.0,94782.0,0.21101001]
[1745826097589,0.45408204,94797.0,94782.0,0.21101001]
[1745826097590,0.02957897,94796.0,94782.0,0.21101001]
[1745826098406,0.03157897,94796.0,94782.0,0.21101001]
[1745826098609,0.04929612,94795.0,94782.0,0.21101001]
[1745826098816,0.02957897,94794.0,94782.0,0.21101001]
[1745826098975,0.01971715,94793.0,94782.0,0.21101001]
[1745826099181,0.02957897,94792.0,94782.0,0.21101001]
[1745826099647,0.02957897,94791.0,94782.0,0.21101001]
[1745826099835,0.02957897,94795.0,94784.0,0.21100542]
[1745826100262,0.02957897,94794.0,94784.0,0.21100542]
[1745826100432,0.001,94795.0,94784.0,0.21100542]
[1745826100638,0.02957897,94794.0,94784.0,0.21100542]
[1745826101210,0.001,94795.0,94784.0,0.21100542]
[1745826101414,0.02957897,94794.0,94784.0,0.21100542]
[1745826101703,0.01973295,94793.0,94784.0,0.21100542]
[1745826101878,0.02957897,94792.0,94784.0,0.21100542]
[1745826102383,0.01973295,94791.0,94784.0,0.21100542]
[1745826102988,0.01973295,94790.0,94784.0,0.21100542]
[1745826103156,0.01973295,94790.0,94782.0,0.21101001]
[1745826103481,0.001,94794.0,94782.0,0.21101001]
[1745826103482,0.01973295,94789.0,94782.0,0.21101001]
[1745826103882,0.01973295,94788.0,94782.0,0.21101001]
[1745826104112,0.01973295,94788.0,94779.0,0.18211646]
[1745826104526,0.01973295,94787.0,94781.0,0.21101086]
[1745826104727,0.01973295,94787.0,94780.0,0.21101498]
[1745826105231,0.01973295,94786.0,94782.0,0.001]
[1745826105435,0.01973295,94786.0,94784.0,0.001]
[1745826105636,0.01973295,94786.0,94781.0,0.21101065]
[1745826105970,0.01973295,94785.0,94781.0,0.21101065]
[1745826106168,0.01973295,94785.0,94783.0,0.21100745]
[1745826106373,0.0496,94793.0,94782.0,0.002]
[1745826106582,0.02961029,94792.0,94782.0,0.002]
[1745826106895,0.02961029,94792.0,94781.0,0.21101065]
[1745826107050,0.02961029,94792.0,94781.0,0.21301065]
[1745826107255,0.01977236,94791.0,94781.0,0.21301065]
[1745826107477,0.02961029,94790.0,94781.0,0.21301065]
[1745826107674,0.02961029,94789.0,94781.0,0.21301065]
[1745826108098,0.01977236,94788.0,94781.0,0.21301065]
[1745826108272,0.02961029,94787.0,94781.0,0.21101065]
[1745826108473,0.02961029,94786.0,94781.0,0.21101065]
[1745826108689,0.02961029,94785.0,94781.0,0.21101065]
[1745826108896,0.02961029,94784.0,94781.0,0.21101065]
[1745826109191,0.04938265,94783.0,94781.0,0.21201065]
[1745826109392,0.02961029,94782.0,94781.0,0.21101065]
[1745826109572,0.04938265,94782.0,94781.0,0.21101065]
[1745826110327,0.04938265,94782.0,94781.0,0.21401065]
[1745826110662,0.04938265,94782.0,94781.0,0.21301065]
[1745826111289,0.05038265,94782.0,94781.0,0.21601065]
[1745826111510,0.05038265,94782.0,94781.0,0.21401065]
[1745826112033,0.05038265,94782.0,94781.0,0.21701065]
[1745826115355,0.05038265,94782.0,94781.0,0.21701065]
[1745826120560,0.05038265,94782.0,94781.0,0.006]
[1745826121013,0.05038265,94782.0,94781.0,0.20205518]
[1745826121014,0.02077236,94782.0,94781.0,0.20205518]
[1745826121234,0.02077236,94782.0,94781.0,0.21099985]
[1745826121726,0.001,94782.0,94781.0,0.21099985]
[1745826122158,0.001,94782.0,94781.0,0.20799985]
[1745826122372,0.002,94782.0,94781.0,0.21399985]
[1745826123100,8.203e-05,94798.0,94797.0,0.21097714]
[1745826123324,8.203e-05,94798.0,94797.0,0.36797669]
[1745826123531,8.203e-05,94798.0,94797.0,0.36586728]
[1745826124334,8.203e-05,94798.0,94797.0,0.36786728]
[1745826124534,8.203e-05,94798.0,94797.0,0.37086728]
[1745826124747,8.203e-05,94798.0,94797.0,0.36586728]
[1745826125170,8.203e-05,94798.0,94797.0,0.76661049]
[1745826125171,1e-08,94798.0,94797.0,0.76661049]
[1745826125374,0.0004243,94818.0,94805.0,0.34]
[1745826125579,0.0004243,94818.0,94805.0,0.63345014]
[1745826126827,0.0014246,94806.0,94805.0,0.64145014]
[1745826127235,1e-08,94806.0,94805.0,1.06659099]
[1745826127439,1e-08,94809.0,94808.0,0.44764085]
[1745826127641,1e-08,94809.0,94808.0,0.76548365]
[1745826128211,1e-08,94814.0,94813.0,0.0953]
[1745826128409,6.761e-05,94814.0,94813.0,0.54429883]
[1745826128664,6.761e-05,94814.0,94813.0,0.75313167]
[1745826129824,6.761e-05,94814.0,94813.0,0.75913167]
[1745826130179,0.00106761,94814.0,94813.0,0.76513167]
[1745826131197,1e-08,94814.0,94813.0,0.77967252]
[1745826131400,1e-08,94823.0,94821.0,0.06094085]
[1745826131722,1e-08,94823.0,94822.0,0.7962802]
[1745826131896,1e-08,94823.0,94822.0,0.79417165]
[1745826132099,1e-08,94823.0,94822.0,0.84057165]
[1745826132309,0.00303554,94847.0,94830.0,0.01054518]
[1745826132509,1e-08,94838.0,94836.0,0.0478]
[1745826132712,1e-08,94838.0,94837.0,0.31988655]
[1745826132944,1e-08,94838.0,94837.0,0.32830132]
[1745826134321,1e-08,94838.0,94837.0,0.71610132]
[1745826135373,1e-08,94838.0,94837.0,0.71710132]
[1745826135809,1e-08,94838.0,94837.0,0.80682132]
[1745826136452,1e-08,94838.0,94837.0,0.71710132]
[1745826136680,1e-08,94838.0,94837.0,0.80682132]
[1745826137519,1e-08,94838.0,94837.0,0.81485691]
[1745826147796,1e-08,94838.0,94837.0,0.32681388]
[1745826148023,1e-08,94838.0,94837.0,0.41653388]
[1745826155972,1e-08,94838.0,94837.0,0.32681388]
[1745826156192,1e-08,94838.0,94837.0,0.41649388]
[1745826158941,0.01974463,94838.0,94837.0,0.41649388]
[1745826159570,0.04933252,94838.0,94837.0,0.41649388]
[1745826160948,0.04933252,94838.0,94837.0,0.32681388]
[1745826161154,0.04933252,94838.0,94837.0,0.41653388]
[1745826162222,0.04933252,94838.0,94837.0,0.32681388]
[1745826162454,0.04933252,94838.0,94837.0,0.30964374]
[1745826165562,0.04933252,94838.0,94837.0,0.21992374]
[1745826165769,0.04933252,94838.0,94837.0,0.30964374]
[1745826171423,0.01974463,94838.0,94837.0,0.30964374]
[1745826174508,1e-08,94838.0,94837.0,0.30964374]
[1745826178889,0.00029016,94843.0,94841.0,0.21087926]
[1745826179086,0.00042748,94843.0,94841.0,0.21087926]
[1745826179470,0.01977084,94842.0,94841.0,0.21087926]
[1745826181234,0.00142748,94843.0,94841.0,0.21087926]
[1745826181441,0.00042748,94843.0,94841.0,0.21087926]
[1745826181848,0.001,94842.0,94841.0,0.26037926]
[1745826182054,0.001,94842.0,94841.0,0.3672694]
[1745826182857,0.00042748,94843.0,94841.0,0.3672694]
[1745826183036,0.00042748,94843.0,94842.0,0.10689014]
[1745826184095,0.00042748,94843.0,94842.0,0.10899853]
[1745826184341,0.00142748,94843.0,94842.0,0.10899853]
[1745826184937,0.00042748,94843.0,94842.0,0.10899853]
[1745826185169,0.00142748,94843.0,94842.0,0.10899853]
[1745826195336,0.00142748,94843.0,94842.0,0.15779853]
[1745826197191,0.00142748,94843.0,94842.0,0.24747853]
[1745826197394,0.00142748,94843.0,94842.0,0.24537014]
[1745826198004,0.00142748,94843.0,94842.0,0.19657014]
[1745826198207,0.00142748,94843.0,94842.0,0.19867855]
[1745826203020,0.00142748,94843.0,94842.0,0.10899855]
[1745826203220,0.00142748,94843.0,94842.0,0.19867855]
[1745826204060,0.00142748,94843.0,94842.0,0.24717855]
[1745826204271,0.00142748,94843.0,94842.0,0.24507014]
[1745826205340,0.00142748,94843.0,94842.0,0.58507014]
[1745826205540,0.00142748,94843.0,94842.0,0.63227014]
[1745826206919,0.00042748,94843.0,94842.0,0.63227014]
[1745826207394,0.00042748,94843.0,94842.0,0.63327014]
[1745826207627,0.00042748,94843.0,94842.0,0.63427014]
[1745826213805,0.00042748,94843.0,94842.0,0.53857014]
[1745826214539,0.00042748,94843.0,94842.0,0.44889014]
[1745826214757,0.00042748,94843.0,94842.0,0.53857014]
[1745826222422,0.00042748,94843.0,94842.0,0.44889014]
[1745826222624,0.00042748,94843.0,94842.0,0.53857014]
[1745826227639,0.00042748,94843.0,94842.0,0.19857014]
[1745826227939,0.00042748,94843.0,94842.0,0.20067853]
[1745826229602,0.00042748,94843.0,94842.0,0.19967853]
[1745826229997,0.00042748,94843.0,94842.0,0.20167853]
[1745826230224,0.00042748,94843.0,94842.0,0.19867853]
[1745826230619,0.00042748,94843.0,94842.0,0.20167853]
[1745826235825,0.00042748,94843.0,94842.0,0.11199853]
[1745826236037,0.00042748,94843.0,94842.0,0.20167853]
[1745826236852,0.00042748,94843.0,94842.0,0.19657014]
[1745826237033,0.00042748,94843.0,94842.0,0.19867849]
[1745826241118,0.00303554,94847.0,94844.0,0.21087259]
[1745826241119,1e-08,94847.0,94844.0,0.21087259]
[1745826241356,1e-08,94847.0,94845.0,0.10899837]
[1745826241712,1e-08,94847.0,94846.0,0.21086814]
[1745826241918,1e-08,94847.0,94846.0,0.31775828]
[1745826244222,1e-08,94847.0,94846.0,0.40743828]
[1745826247151,1e-08,94847.0,94846.0,0.31775828]
[1745826247342,1e-08,94847.0,94846.0,0.40743828]
[1745826250963,1e-08,94847.0,94846.0,0.31775828]
[1745826251171,1e-08,94847.0,94846.0,0.40743828]
[1745826253283,1e-08,94847.0,94846.0,0.30054814]
[1745826262614,1e-08,94847.0,94846.0,0.21086814]
[1745826262848,1e-08,94847.0,94846.0,0.30265653]
[1745826263061,1e-08,94847.0,94846.0,0.30054814]
[1745826283462,0.03136409,94863.0,94862.0,0.21083257]
[1745826285640,0.03436409,94863.0,94862.0,0.21083257]
[1745826285849,0.03736409,94863.0,94862.0,0.21083257]
[1745826286064,0.03740985,94863.0,94862.0,0.21083257]
[1745826286608,0.03731715,94863.0,94862.0,0.21083257]
[1745826287189,0.03731715,94863.0,94862.0,0.21863636]
[1745826290160,0.03731715,94863.0,94862.0,0.00780379]
[1745826290317,0.06698059,94863.0,94862.0,0.00780379]
[1745826290516,0.06908906,94863.0,94855.0,0.0105424]
[1745826290723,0.02966344,94862.0,94856.0,0.01054229]
[1745826290950,0.00210847,94861.0,94856.0,0.01054229]
[1745826291273,0.01977605,94860.0,94855.0,0.01850837]
[1745826291444,0.00210847,94859.0,94855.0,0.01850837]
[1745826291680,0.02188452,94859.0,94856.0,0.01054229]
[1745826292246,0.00210847,94859.0,94856.0,0.01054229]
[1745826292436,0.00210847,94862.0,94857.0,0.01054218]
[1745826292655,0.00210847,94862.0,94858.0,0.01054207]
[1745826293417,0.004,94859.0,94858.0,0.01054207]
[1745826293724,0.03165785,94859.0,94858.0,0.01054207]
[1745826293924,0.02965785,94859.0,94858.0,0.01054207]
[1745826295418,0.049429,94859.0,94858.0,0.01054207]
[1745826295633,0.051429,94859.0,94858.0,0.01054207]
[1745826295781,0.053429,94859.0,94858.0,0.01054207]
[1745826296776,0.053429,94859.0,94857.0,0.01054218]
[1745826296975,0.03176632,94858.0,94856.0,0.01054229]
[1745826297227,0.02965785,94857.0,94856.0,0.01054229]
[1745826297446,0.049429,94857.0,94856.0,0.01054229]
[1745826297670,0.049429,94857.0,94856.0,0.2213882]
[1745826298098,0.049429,94857.0,94855.0,0.01850837]
[1745826298308,0.02965785,94856.0,94855.0,0.01850837]
[1745826298498,0.049429,94856.0,94855.0,0.01850837]
[1745826299281,0.050429,94856.0,94855.0,0.01850837]
[1745826299489,0.052429,94856.0,94855.0,0.01850837]
[1745826303359,0.052429,94856.0,94855.0,0.00796597]
[1745826303664,0.052429,94856.0,94853.0,0.01054262]
[1745826303866,0.02965785,94855.0,94854.0,0.21084996]
[1745826304076,0.01977115,94855.0,94854.0,0.21084996]
[1745826304623,0.01977115,94855.0,94853.0,0.01054262]
[1745826304998,0.01977115,94854.0,94853.0,0.01054262]
[1745826306305,0.02077115,94854.0,94853.0,0.01054262]
[1745826306951,0.02077115,94854.0,94853.0,0.01839645]
[1745826308379,0.02177115,94854.0,94853.0,0.01839645]
[1745826312464,0.02177115,94854.0,94853.0,0.17259493]
[1745826312671,0.02177115,94854.0,94853.0,0.22009493]
[1745826312871,0.02177115,94854.0,94853.0,0.21798659]
[1745826313226,0.002,94854.0,94853.0,0.21798659]
[1745826313440,4.576e-05,94863.0,94860.0,0.01054185]
[1745826313638,0.02965469,94862.0,94861.0,0.2108348]
[1745826314703,0.02965469,94862.0,94860.0,0.22137703]
[1745826315123,0.02965469,94861.0,94860.0,0.22137703]
[1745826315333,0.02965469,94862.0,94860.0,0.22137703]
[1745826315528,4.576e-05,94863.0,94862.0,0.21083257]
[1745826315759,0.03069673,94863.0,94862.0,0.21083257]
[1745826316369,0.02969673,94863.0,94862.0,0.21083257]
[1745826318214,0.03169673,94863.0,94862.0,0.21083257]
[1745826319008,0.03269673,94863.0,94862.0,0.21083257]
[1745826328960,0.03269673,94863.0,94860.0,0.01054185]
[1745826329130,0.00304576,94863.0,94860.0,0.01054185]
[1745826329506,0.00304576,94863.0,94860.0,0.22137732]
[1745826330135,0.00204576,94863.0,94860.0,0.22137732]
[1745826330337,0.00204576,94863.0,94861.0,0.21083281]
[1745826330543,4.576e-05,94863.0,94861.0,0.21083281]
[1745826330746,0.00204576,94863.0,94861.0,0.21083281]
[1745826331144,4.576e-05,94863.0,94861.0,0.21083281]
[1745826331553,0.00204576,94863.0,94860.0,0.22137732]
[1745826331754,0.00204576,94863.0,94862.0,0.0070537]
[1745826331916,0.03268747,94863.0,94861.0,0.00705577]
[1745826332121,0.00304576,94863.0,94862.0,0.0070537]
[1745826332362,4.576e-05,94863.0,94862.0,0.0070537]
[1745826332542,0.00104576,94863.0,94860.0,0.22137732]